Cogmind - Beta 14 @@@ ROGUE MODE // 2024.11.01 @ 05:37:58 Player: Gabe+Kate4EVR Result: Destroyed by P1-8GY(R) with Subdweller Machine Gun Performance ------------- Evolutions (0) 0 Regions Visited (2) 400 Robots Destroyed (4) 20 Value Destroyed (153) 153 Prototype IDs (0) 0 Alien Tech Used (0) 0 Bonus (0) 0 TOTAL SCORE: 573 Bonus ------- None Cogmind --------- Core Integrity 0/250 Matter 204/300 Energy 99/100 System Corruption 0% Temperature Cool (0) Movement Core (150) Ox2 Location -10/Subcaves Parts ------- > --- POWER (1) -------- (None) > --- PROPULSION (2) --- (None) > --- UTILITY (2) ------ Small Storage Unit > --- WEAPON (2) ------- Barrage Gun > --- INVENTORY (8) ---- Light Ion Engine Subdweller Power Source Sensor Array Subdweller Beam Cannon Light Assault Rifle Light Assault Rifle Grenade Launcher Peak State ------------ > --- POWER ------------ Ion Engine > --- PROPULSION ------- Subdweller Monowheel > --- UTILITY ---------- Small Storage Unit > --- WEAPON ----------- Subdweller Machine Gun Battle Cannon > --- INVENTORY -------- Light Ion Engine Subdweller Power Source Sensor Array Subdweller Beam Cannon Light Assault Rifle Light Assault Rifle Barrage Gun Grenade Launcher [Rating: 9] Favorites ----------- Power Ion Engine Engine Ion Engine Propulsion Aluminum Leg Leg Aluminum Leg Wheel Subdweller Monowheel Utility Small Storage Unit Device Sensor Array Storage Small Storage Unit Weapon Assault Rifle Energy Gun Small Laser Ballistic Gun Assault Rifle Ballistic Cannon Battle Cannon Build | -11 -10 -10 ------- Run | Yrd Mat Sub Slots Evolved . | . . . Power . | . . . Propulsion . | . . . Utility . | . . . Weapon . | . . . Parts Attached 13 | 6 2 5 Power 1 | 1 . . Engine 1 | 1 . . Core . | . . . Reactor . | . . . Propulsion 3 | 2 . 1 Treads . | . . . Leg 2 | 2 . . Wheel 1 | . . 1 Hover . | . . . Flight . | . . . Utility 2 | 1 1 . Device 1 | . 1 . Storage 1 | 1 . . Processor . | . . . Hackware . | . . . Protection . | . . . Artifact . | . . . Weapon 7 | 2 1 4 Energy Gun 1 | . 1 . Energy Cannon . | . . . Ballistic Gun 5 | 2 . 3 Ballistic Cannon 1 | . . 1 Launcher . | . . . Special Weapon . | . . . Impact Weapon . | . . . Slashing Weapon . | . . . Piercing Weapon . | . . . Special Melee Weapon . | . . . Unidentified Prototypes . | . . . Parts Lost 9 | . . 9 Power 1 | . . 1 Propulsion 3 | . . 3 Utility 1 | . . 1 Weapon 4 | . . 4 Highest Loss Streak 5 | . . 5 To Critical Strikes . | . . . Average Slot Usage (%) 92 | . 98 72 Engine 13 | . 14 13 Leg 22 | . 28 4 Wheel 2 | . . 10 Device 9 | . 12 1 Storage 14 | . 14 14 Energy Gun 9 | . 11 . Ballistic Gun 17 | . 16 21 Ballistic Cannon 1 | . . 5 Peak Build Rating 9 | 6 7 9 Average Rating 7 | 4 6 7 On Entrance 4 | . 6 7 Naked Turns . | . . . Heaviest Build 17 | 13 14 17 Greatest Support 20 | 20 20 20 Greatest Overweight (x) 4 | . . 4 Average Overweight (x) . | . . . Largest Inventory Capacity 8 | 8 8 8 Average Capacity 7 | 6 8 8 Most Carried 8 | 1 5 8 Average Carried 5 | . 4 7 Final Capacity 8 | 8 8 8 Final Carried 7 | 1 5 7 Class Distribution -------------------- 100% | Mutant Dominant Class ---------------- Mutant | -10/Materials Mutant | -10/Subcaves Resources | -11 -10 -10 ----------- Run | Yrd Mat Sub Matter Collected 343 | 90 70 183 Remotely . | . . . Salvage Created 167 | . 70 97 Parts 8 | . 4 4 Haulers Intercepted . | . . . Recyclers Shooed . | . . . Parts Field Recycled . | . . . Retrieved Matter . | . . . Parts Self-Destructed 5 | . . 5 Prevented . | . . . Kills | -11 -10 -10 ------- Run | Yrd Mat Sub Combat Hostiles Destroyed 4 | . 2 2 Guns 4 | . 2 2 Classes Destroyed 3 | . 1 2 Grunt 2 | . 2 . Sentry 1 | . . 1 Subdweller 1 | . . 1 Best Kill Streak 1 | . 1 1 Combat Bots Only 1 | . 1 1 Max Kills in Single Turn 1 | . 1 1 Gunslinging . | . . . Exploded . | . . . Melee . | . . . Uniques/NPCs Destroyed . | . . . Combat | -11 -10 -10 -------- Run | Yrd Mat Sub Hostile Shots Fired 58 | . 5 53 Missed 11 | . 2 9 Damage Taken 1104 | . 32 1072 Core 272 | . 12 260 Absorbed by Shields . | . . . Core Remaining (%) 100 | 100 . . Volleys Fired 34 | . 8 26 Largest 2 | . 2 2 Hottest 69 | . 60 69 Shots Fired 62 | . 16 46 Gun 53 | . 16 37 Cannon 9 | . . 9 Launcher . | . . . Special . | . . . Kinetic 58 | . 15 43 Thermal 4 | . 1 3 Explosive . | . . . Electromagnetic . | . . . Robot Hit Streak 15 | . 4 15 Robot Miss Streak 3 | . 2 3 Penetration Max . | . . . Secondary Targets . | . . . Shots Hit Robots 44 | . 9 35 Core Hits 9 | . 4 5 Critical Kills . | . . . Critical Parts Destroyed . | . . . Critical Strikes . | . . . Melee Attacks . | . . . Impact . | . . . Slashing . | . . . Piercing . | . . . Sneak Attacks . | . . . Combat Hostiles . | . . . Follow-up Attacks . | . . . Damage Inflicted 575 | . 93 482 Guns 473 | . 93 380 Cannons 102 | . . 102 Explosions . | . . . Melee . | . . . Ramming . | . . . Kinetic 575 | . 93 482 Thermal . | . . . Explosive . | . . . Electromagnetic . | . . . Impact . | . . . Slashing . | . . . Piercing . | . . . Highest Corruption . | . . . Average Corruption . | . . . Corruption Purged . | . . . Corruption Blocked . | . . . Overload Shots . | . . . Overflow Damage . | . . . Projectiles . | . . . Explosions . | . . . Melee . | . . . Knockbacks 1 | . . 1 Impact . | . . . Kinetic 1 | . . 1 Secondary . | . . . Self-Inflicted Damage . | . . . Shots . | . . . Rammed . | . . . Targets Rammed . | . . . Kicked . | . . . Crushed . | . . . Highest Temperature 6 | . 6 . Average Temperature 6 | . 6 . Received Heat Transfer 243 | . 18 225 Siege Activations . | . . . Robots Corrupted . | . . . Combat Hostiles . | . . . Parts Fried . | . . . Impact Corruptions . | . . . Robots Melted . | . . . Combat Hostiles . | . . . Parts Melted . | . . . Heat Transferred . | . . . Parts Sabotaged . | . . . Parts Stolen . | . . . Parts Stripped . | . . . Power Chain Reactions . | . . . Alert | -11 -10 -10 ------- Run | Yrd Mat Sub Peak Influence 65 | . 65 . Initial . | . . . Average 17 | . 17 . Maximum Alert Level . | . . . Low Security (%) 100 | 100 100 . Level 1 . | . . . Level 2 . | . . . Level 3 . | . . . Level 4 . | . . . Level 5 . | . . . High Security . | . . . Max Security . | . . . Squads Dispatched 1 | . 1 . Investigation . | . . . Extermination . | . . . Reinforcement 1 | . 1 . Assault . | . . . Garrison . | . . . Intercept . | . . . Searches Triggered . | . . . Construction Impeded . | . . . Haulers Reinforced . | . . . Active Scanning Responses . | . . . Cargo Convoy Interrupts . | . . . Stealth | -11 -10 -10 --------- Run | Yrd Mat Sub Distress Signals . | . . . Communications Jammed . | . . . Distress Signals . | . . . Times Spotted 8 | . 3 5 Peak Tracking Total 2 | . 2 2 Tactical Retreats . | . . . Traps | -11 -10 -10 ------- Run | Yrd Mat Sub Traps Triggered . | . . . Indirectly . | . . . Trap Hack Attempts . | . . . Triggered . | . . . Disarmed . | . . . Reprogrammed . | . . . Reused . | . . . Traps Extracted . | . . . Installed . | . . . Triggered . | . . . Machines | -11 -10 -10 ---------- Run | Yrd Mat Sub Machines Disabled . | . . . Max in Single Turn . | . . . Machines Repaired . | . . . Machines Dismantled . | . . . Machines Sabotaged . | . . . Overloaded Fab Kills . | . . . Hacking | -11 -10 -10 --------- Run | Yrd Mat Sub Machines Accessed 1 | . 1 . Terminals 1 | . 1 . Fabricators . | . . . Repair Stations . | . . . Recycling Units . | . . . Scanalyzers . | . . . Garrison Access . | . . . Total Hacks 1 | . 1 . Successful . | . . . Failed 1 | . 1 . Catastrophic . | . . . Database Lockouts . | . . . Manual 1 | . 1 . Terminals 1 | . 1 . Fabricators . | . . . Repair Stations . | . . . Recycling Units . | . . . Scanalyzers . | . . . Garrison Access . | . . . Terminal Hacks . | . . . Fabricator Hacks . | . . . Repair Station Hacks . | . . . Recycling Unit Hacks . | . . . Scanalyzer . | . . . Garrison Access Hacks . | . . . Unauthorized Hacks . | . . . Terminals . | . . . Fabricators . | . . . Repair Stations . | . . . Recycling Units . | . . . Scanalyzers . | . . . Garrison Access . | . . . Data Cores Recovered . | . . . Used . | . . . Hacking Detections . | . . . Full Trace Events . | . . . Feedback Events . | . . . Feedback Blocked . | . . . Robot Schematics Acquired . | . . . Robots Built . | . . . Authchips . | . . . Time . | . . . Total Robot Build Rating . | . . . Part Schematics Acquired . | . . . Parts Built . | . . . Authchips . | . . . Time . | . . . Total Part Build Rating . | . . . Parts Repaired . | . . . Time . | . . . Parts Recycled . | . . . Recycled Matter . | . . . Retrieved Matter . | . . . Retrieved Components . | . . . Parts Scanalyzed . | . . . Part Schematics Acquired . | . . . Parts Damaged . | . . . Bothacking | -11 -10 -10 ------------ Run | Yrd Mat Sub Used RIF Installer . | . . . Robots Hacked . | . . . Non-combat . | . . . Combat . | . . . Robot Hacks Applied . | . . . Relay Couplers Released . | . . . Fabnet Peak Effective % . | . . . Robots Rewired . | . . . Allies Hacked . | . . . Hacks Repelled . | . . . Allies | -11 -10 -10 -------- Run | Yrd Mat Sub Total Allies . | . . . Largest Group . | . . . Highest-Rated Group . | . . . Highest-Rated Ally . | . . . Total Orders . | . . . Ally Attacks . | . . . Total Damage . | . . . Kills . | . . . Allies Corrupted . | . . . Allies Melted . | . . . Intel | -11 -10 -10 ------- Run | Yrd Mat Sub Robot Analysis Total . | . . . Derelict Logs Recovered . | . . . Drone Launches . | . . . Drone Recoveries . | . . . Exploration | -11 -10 -10 ------------- Run | Yrd Mat Sub Turns Passed 1414 | 50 1025 339 Spaces Moved 388 | 39 141 208 Core 19 | 8 . 11 Treads . | . . . Legs 180 | 31 141 8 Wheels 189 | . . 189 Hover . | . . . Flight . | . . . Fastest Speed 50 | 50 120 110 Average Speed 117 | 105 120 117 Slowest Speed 250 | 120 120 250 Overloaded Moves . | . . . Propulsion Burnouts . | . . . Robots Hopped . | . . . Cave-ins Triggered . | . . . Exploration Rate (%) 14 | 4 22 18 Regions Visited 2 Branch Regions 1 Pre-discovered Areas . | . . . Known Exits Taken . | . . . Unknown Exits Taken 2 | 1 1 . Scrap Searched . | . . . Spaces Dug . | . . . Terrain Destroyed . | . . . Melee . | . . . Projectile . | . . . AOE . | . . . Terrain Rammed . | . . . Walls Destroyed . | . . . Machines Disabled . | . . . Actions | -11 -10 -10 --------- Run | Yrd Mat Sub Total 1285 | 45 981 259 Wait 841 | . 827 14 Move 386 | 38 140 208 Hop . | . . . Pick Up 10 | 1 4 5 Fast Attach 9 | 6 1 2 Attach 2 | . . 2 Detach . | . . . Swap 2 | . 1 1 Drop 1 | . . 1 Fire 34 | . 8 26 Melee . | . . . Ram . | . . . Kick . | . . . Crush . | . . . Escape Stasis . | . . . Rewire . | . . . Trap . | . . . Miscellaneous . | . . . Route ------- -11/Scrapyard -10/Materials (discovered 2 exits: [*Min] / [*Sub]) -10/Subcaves (discovered 1 exit: [*Mat]) History --------- Turn | Location | Event 2 | -11/Scrapyard | Met Revision 17 5 | -11/Scrapyard | Discovered new exit (range 16) 51 | -11/Scrapyard | Entered Materials 247 | -10/Materials | Discovered new exit (range 15) 304 | -10/Materials | Build established: Mutant 1070 | -10/Materials | Discovered new exit (range 6) 1076 | -10/Materials | Entered Subcaves 1076 | -10/Subcaves | Discovered new exit (range 12) 1080 | -10/Subcaves | Ambushed by Subdwellers from Twisted Machinery 1101 | -10/Subcaves | Core integrity fell below 50% 1153 | -10/Subcaves | Lost 5 parts (2n1u2w) 1399 | -10/Subcaves | Core integrity fell below 20% 1415 | -10/Subcaves | Destroyed by P1-8GY(R) with Subdweller Machine Gun Last Messages --------------- 01139_ Acquired Sub. Power Source. 01141_ Subatomizers dissect the Sub. Monowheel. 01157_ Acquired Sub. Monowheel. 01160_ Acquired 35 matter. 01177_ Subatomizers dissect the Sub. Power Source. 01237_ Acquired 12 matter. 01258_ Acquired Barrage Gun. 01281_ Y-45 Defender destroyed. 01285_ Acquired 39 matter. 01294_ Dropped Sub. Power Source. 01294_ Acquired Sub. Power Source. 01297_ Hvy. Assault Rifle fries itself beyond repair. 01299_ Lgt. Armor Plating fries itself beyond repair. 01301_ Subatomizers dissect the Sub. Laser. 01309_ Acquired 55 matter. 01404_ Sub. Machine Gun destroyed. 01406_ Ion Engine destroyed. 01408_ Sub. Monowheel destroyed. 01412_ P1-8GY(R) knocked back. 01414_ Battle Cannon destroyed. Map ----- +----------------------------------------------------+ | ?????????## ##??????????? ????????????? | | ????##????# #????????????? ????????????? | | ???## ??## ##???????????????????????????? | | ??## ### [ ###???##???????????????????????? | | ??# &* #????# ? ????????????????????? | | ???### #??## ? ?????????????????????? | | ?????# #?? ? ??????????????????????? | | ?????# ##? ^ ? ???????????????????????? | | ## #? ????????????????????????? | | # ?## #? ?????????????????????????? | | ? ## ?## ## ????????? #???????????????? | | ?# ??## ??# ### #???????? ## ?????????????? | | ??###????## ??# ## #???????? ????????????? | | ??????????# ??## #??????? #?????????????? | | ??????????#????## #???#### #?????????????? | | ????????????????# #??# "##????????????? | | ????????????????# #?? ""????????????? | | ????????????????# ### """??????????? | | ????????????????# ## "??????????? | | ????????????????#### ## "?????????? | | ??????????????????# #??????????? | | ??????????????????# "??????????? | | ??????????????????## " ??????????? | | ???????????????????# R ### "??????????? | | ???????????????????## R ###? ?????????? | | ????????????????????## @ #??? ??????????? | | ?????????????????????#% #????? ???????????? | | ???????????###??###??# #????? ???????????? | | ???????????# ?## ##?# ;???? ??????????????? | | ???????????# ## ### ##??? #??????????????? | | ???????????# #???? #??????????????? | | ???????????# ##???#" ##?????????????? | | ???????????# ## #????""""#?????????????? | | ???????????# ### ##??? ""#### ??????????? | | ???????????# #### #### "" " ?????????? | | ???????????# #?# """"" ???????????? | | ???????????# ##?# """ #????????????? | | ???????????## #??# ""##????????????? | | ????????????## ##??# ### "##?????????????? | | ?????????????###???# ####?## ###??????????????? | | ???????????????????######??????##????????????????? | | ?????????????????????????????????????????????????? | | ?????????????????????????????????????????????????? | | ?????????????????????????????????????????????????? | | ?????????????????????????????????????????????????? | | ?????????????????????????????????????????????????? | | ?????????????????????????????????????????????????? | | ?????????????????????????????????????????????????? | | ?????????????????????????????????????????????????? | | ?????????????????????????????????????????????????? | +----------------------------------------------------+ Best States ------------- Heat Dissipation 25 Energy Generation 10 Energy Capacity 250 Matter Stores 260 Matter Capacity 300 Sight Range 16 Robot Scan Range 14 Terrain Scan Density 10 Evasion (%) 55 Item Schematics ----------------- None Robot Schematics ------------------ None Fabricated ------------ Nothing Alien Tech Used ----------------- None Achievements -------------- None Challenges ------------ None Game ------ Seed CorruptionPointyBeacon Manual? 0 Play Time 00:06:56 Cumulative 201.8 hours Start 2024.10.31 @ 10:38:37 End 2024.11.01 @ 05:37:58 Sessions 1 Manual Loads 0 Difficulty Rogue Special Mode None Game No. 393 Rogue 393 Adventurer 0 Explorer 0 Win Type - Total 0 Types 0/0/0/0/0/0/0/0/0 Lore% 42 Gallery% 64 Achievement% 48 Wizard Run 0 Options --------- Layout 0 ASCII 0 Keyboard 1 Movement Numpad Keybinds 0 Fullscreen 2 Font 18/X11 Map View 76x50 Zoom Use 0% Tactical HUD 1 Map Filters NONE Filters NONE Steam 1 RUN: 5c26d375-bd45-4977-a7eb-904cd53fe2e2